bitfinex-derivatives/quotes_BTCF0:USTF0_20260127
["timestamp","ask_amount","ask_price","bid_price","bid_amount"]
[1769534160430,0.00258838,87969.0,87951.0,0.011383]
[1769534160724,0.11990495,87969.0,87930.0,0.09674874]
[1769534160931,0.26466382,87960.0,87931.0,0.10244]
[1769534161116,0.11731657,87948.0,87910.0,0.09674874]
[1769534161321,0.11731657,87948.0,87925.0,0.011386]
[1769534161322,0.00258838,87947.0,87925.0,0.011386]
[1769534161524,0.01397138,87947.0,87928.0,0.011385]
[1769534161726,0.011384,87943.0,87925.0,0.011386]
[1769534161932,0.00258838,87942.0,87925.0,0.113826]
[1769534162224,0.00258838,87942.0,87927.0,0.011386]
[1769534162426,0.10244,87948.0,87925.0,0.10244]
[1769534162627,0.00258838,87947.0,87925.0,0.10244]
[1769534162821,0.00258838,87947.0,87930.0,0.011385]
[1769534163022,0.00258838,87946.0,87923.0,0.10621038]
[1769534163231,0.00258838,87946.0,87931.0,0.011385]
[1769534163924,0.00258838,87946.0,87924.0,0.40228]
[1769534164230,0.00258838,87946.0,87927.0,0.011386]
[1769534164431,0.011384,87943.0,87924.0,0.40228]
[1769534164624,0.01397238,87942.0,87925.0,0.10244]
[1769534164827,0.00258838,87942.0,87925.0,0.10244]
[1769534165029,0.00258838,87942.0,87927.0,0.011386]
[1769534165731,0.00258838,87942.0,87925.0,0.10244]
[1769534165946,0.011385,87933.0,87919.0,9.811e-05]
[1769534166128,0.011385,87931.0,87919.0,9.811e-05]
[1769534166326,0.00269694,87930.0,87917.0,0.10244]
[1769534166826,0.00269694,87930.0,87915.0,0.00569694]
[1769534167031,0.00269694,87930.0,87914.0,0.11146011]
[1769534167032,0.00269694,87930.0,87917.0,0.011387]
[1769534167221,0.00269694,87930.0,87916.0,0.10248]
[1769534167929,0.00010856,87930.0,87916.0,0.10248]
[1769534168131,0.00258838,87929.0,87916.0,0.10248]
[1769534168321,0.00258838,87929.0,87916.0,0.113867]
[1769534168732,0.011386,87927.0,87913.0,0.10248]
[1769534168932,0.00010856,87930.0,87924.0,0.011386]
[1769534169132,0.00258838,87929.0,87914.0,0.11146011]
[1769534169430,0.00258838,87936.0,87919.0,0.011387]
[1769534170329,0.00258838,87936.0,87916.0,0.11146011]
[1769534170529,0.00258838,87936.0,87918.0,0.011387]
[1769534170925,0.00258838,87936.0,87920.0,0.011386]
[1769534171329,0.14734725,87950.0,87920.0,0.011386]
[1769534171330,0.21979657,87954.0,87920.0,0.11146011]
[1769534171530,0.011383,87945.0,87925.0,0.011386]
[1769534171830,0.113732,87956.0,87941.0,0.011384]
[1769534172134,0.00258838,87955.0,87942.0,0.011384]
[1769534172335,0.00258838,87955.0,87937.0,0.21394011]
[1769534172528,0.11731657,87954.0,87938.0,0.10248]
[1769534172724,0.00258838,87953.0,87935.0,0.011385]
[1769534173126,0.00258838,87953.0,87932.0,0.10248]
[1769534173640,0.00258838,87953.0,87942.0,0.011384]
[1769534173930,0.00258838,87953.0,87944.0,0.011383]
[1769534174332,0.00258838,87953.0,87941.0,0.011384]
[1769534175021,0.10248,87956.0,87939.0,0.011384]
[1769534175223,0.00258838,87953.0,87939.0,0.011384]
[1769534175435,0.10248,87956.0,87933.0,0.11146011]
[1769534175631,0.10506838,87956.0,87941.0,0.11146011]
[1769534175834,0.10506838,87956.0,87933.0,0.11146011]
[1769534176127,0.10506838,87956.0,87940.0,0.011384]
[1769534176317,0.11731657,87955.0,87935.0,0.10248]
[1769534176523,0.01397038,87954.0,87935.0,0.10248]
[1769534176929,0.12869757,87964.0,87936.0,0.11146011]
[1769534177130,0.00258838,87963.0,87936.0,0.11146011]
[1769534177331,0.00258838,87963.0,87946.0,0.011383]
[1769534177738,0.011381,87962.0,87943.0,0.011384]
[1769534177926,0.00258838,87961.0,87948.0,0.011383]
[1769534178237,0.00258838,87961.0,87943.0,0.11146011]
[1769534178238,0.00258838,87961.0,87946.0,0.011383]
[1769534178424,0.00258838,87961.0,87949.0,0.011383]
[1769534178629,0.00258838,87961.0,87943.0,0.12284311]
[1769534178830,0.011382,87959.0,87943.0,0.10248]
[1769534179042,0.00258838,87958.0,87943.0,0.10248]
[1769534179539,0.00258838,87958.0,87937.0,0.011384]
[1769534179730,0.00258838,87958.0,87940.0,0.10248]
[1769534180945,0.011382,87957.0,87940.0,0.10248]
[1769534181136,0.011382,87952.0,87939.0,0.10248]
[1769534181345,0.00258838,87951.0,87939.0,0.10248]
[1769534182031,0.011382,87959.0,87939.0,0.21394011]
[1769534182231,0.011382,87956.0,87939.0,0.21394011]
[1769534182534,0.011382,87956.0,87909.0,0.011388]
[1769534182535,0.12045273,87932.0,87907.0,0.10248]
[1769534182732,0.011385,87930.0,87908.0,0.011388]
[1769534182940,0.10248,87932.0,87913.0,0.011387]
[1769534183131,0.10506838,87932.0,87913.0,0.011387]
[1769534183533,0.10248,87932.0,87913.0,0.011387]
[1769534183733,0.10506838,87932.0,87911.0,0.011388]
[1769534184139,0.10506838,87932.0,87914.0,0.011387]
[1769534184441,0.10248,87932.0,87912.0,0.03218523]
[1769534184639,0.10248,87932.0,87915.0,0.03218523]
[1769534185138,0.10248,87932.0,87918.0,0.011387]
[1769534185632,0.10248,87945.0,87921.0,0.03218523]
[1769534185835,0.00258838,87943.0,87923.0,0.011386]
[1769534186543,0.00258838,87943.0,87923.0,0.03218523]
[1769534186839,0.011384,87937.0,87918.0,0.10248]
[1769534187139,0.11845359,87936.0,87909.0,0.10248]
[1769534187341,0.011386,87927.0,87910.0,0.10248]
[1769534187639,0.011386,87927.0,87905.0,0.03218523]
[1769534187640,0.00258838,87926.0,87908.0,0.10248]
[1769534188233,0.011386,87925.0,87906.0,0.04411434]
[1769534188542,0.011388,87906.0,87884.0,0.113871]
[1769534188732,0.00258838,87905.0,87886.0,0.02276931]
[1769534188927,0.00258838,87905.0,87888.0,0.011391]
[1769534189142,0.00258838,87905.0,87886.0,0.01137831]
[1769534189940,0.00258838,87905.0,87886.0,0.02276931]
[1769534190445,0.00258838,87905.0,87886.0,0.01137831]
[1769534190834,0.10248,87908.0,87886.0,0.01137831]
[1769534190835,0.10248,87908.0,87886.0,0.04562343]
[1769534191043,0.10506838,87908.0,87886.0,0.04562343]
[1769534191240,0.10506838,87908.0,87892.0,0.01139]
[1769534191738,0.10506838,87908.0,87886.0,0.04562343]
[1769534192344,0.10506838,87908.0,87894.0,0.01139]
[1769534192636,0.10248,87908.0,87901.0,0.011389]
[1769534192833,0.10248,87925.0,87904.0,0.03651624]
[1769534193033,0.10506838,87925.0,87904.0,0.03651624]
[1769534193236,0.10506838,87925.0,87912.0,0.011388]
[1769534193747,0.10506838,87925.0,87909.0,0.011388]
[1769534193941,0.10506838,87925.0,87911.0,0.011388]
[1769534194244,0.10248,87925.0,87911.0,0.011388]
[1769534194443,0.10248,87925.0,87909.0,0.03714775]
[1769534194639,0.11999999,87948.0,87912.0,0.011388]
[1769534194844,0.00258838,87938.0,87924.0,0.011386]
[1769534195144,0.01397238,87938.0,87921.0,0.011386]
[1769534195336,0.011385,87932.0,87911.0,0.10248]
[1769534195536,0.14734725,87940.0,87904.0,0.29992]
[1769534195537,0.011386,87924.0,87912.0,0.10248]
[1769534195738,0.011386,87922.0,87904.0,0.10248]
[1769534195930,0.00258838,87921.0,87891.0,0.01139]
[1769534196132,0.00258838,87921.0,87892.0,0.4024]
[1769534196339,0.12,87931.0,87894.0,0.01139]
[1769534196633,0.12,87931.0,87892.0,0.51614235]
[1769534196634,0.011386,87926.0,87892.0,0.4024]
[1769534196843,0.00258838,87925.0,87911.0,0.011388]
[1769534197046,0.12,87931.0,87913.0,0.011387]
[1769534197244,0.01397338,87930.0,87906.0,0.10248]
[1769534197444,0.00258838,87930.0,87913.0,0.011387]
[1769534197746,0.011386,87927.0,87906.0,0.10248]
[1769534198145,0.00258838,87930.0,87906.0,0.10248]
[1769534198146,0.011385,87933.0,87915.0,0.011387]
[1769534198446,0.01397338,87933.0,87915.0,0.011387]
[1769534198645,0.011385,87930.0,87911.0,0.011388]
[1769534198948,0.00258838,87929.0,87911.0,0.011388]
[1769534199137,0.00258838,87929.0,87913.0,0.011387]
[1769534199336,0.10248,87936.0,87906.0,0.10248]
[1769534199337,0.113865,87936.0,87906.0,0.10248]
[1769534199541,0.00258838,87935.0,87918.0,0.011387]
[1769534199744,0.011385,87934.0,87914.0,0.011387]
[1769534199951,0.00258838,87933.0,87908.0,0.011388]
[1769534200454,0.011386,87926.0,87909.0,0.10248]
[1769534200643,0.00258838,87925.0,87910.0,0.10248]
[1769534201541,0.12,87916.0,87890.0,0.01139]
[1769534201842,0.011388,87911.0,87891.0,0.01139]
[1769534202050,0.10506838,87910.0,87891.0,0.01139]
[1769534202543,0.12,87909.0,87867.0,0.011393]
[1769534202746,0.12,87904.0,87886.0,0.00975036]
[1769534202946,0.01139,87894.0,87886.0,0.00975036]
[1769534203152,0.01139,87892.0,87870.0,0.011393]
[1769534203342,0.011391,87889.0,87866.0,0.0227739]
[1769534203644,0.00258838,87888.0,87871.0,0.011393]
[1769534204442,0.00258838,87888.0,87867.0,0.011393]
[1769534204642,0.00258838,87888.0,87870.0,0.011393]
[1769534205349,0.22332295,87981.0,87876.0,0.00496302]
[1769534205350,0.06342391,87913.0,87876.0,0.00496302]
[1769534205539,0.011389,87904.0,87885.0,0.00487135]
[1769534205741,0.00258838,87903.0,87885.0,0.00487135]
[1769534206146,0.011389,87902.0,87885.0,0.00487135]
[1769534206345,0.00258838,87901.0,87885.0,0.00487135]
[1769534206946,0.011389,87900.0,87885.0,0.00487135]
[1769534207151,0.00258838,87899.0,87881.0,0.10248]
[1769534207348,0.10248,87912.0,87881.0,0.10248]
[1769534207643,0.10248,87912.0,87876.0,9.167e-05]
[1769534207644,0.12,87895.0,87876.0,9.167e-05]
[1769534207848,0.00258838,87894.0,87876.0,9.167e-05]
[1769534208038,0.10252,87893.0,87876.0,9.167e-05]
[1769534208237,0.00258838,87892.0,87876.0,9.167e-05]
[1769534208762,0.00258838,87892.0,87876.0,0.01148367]
[1769534208942,0.011389,87901.0,87879.0,0.011392]
[1769534209252,0.10510838,87900.0,87879.0,0.011392]
[1769534209451,0.10510838,87900.0,87878.0,9.27e-05]
[1769534209651,0.10252,87899.0,87885.0,0.011391]
[1769534209853,0.15873225,87930.0,87881.0,0.10252]
[1769534210148,0.011388,87910.0,87885.0,9.27e-05]
[1769534210346,0.011386,87924.0,87905.0,0.011388]
[1769534210545,0.10510838,87924.0,87900.0,9.27e-05]
[1769534210746,0.011387,87918.0,87895.0,0.10252]
[1769534210958,0.00258838,87917.0,87898.0,0.011389]
[1769534211148,0.011387,87913.0,87895.0,0.10252]
[1769534211354,0.011388,87911.0,87895.0,0.10252]
[1769534211663,0.00258838,87910.0,87895.0,0.10252]
[1769534212648,0.011388,87909.0,87895.0,0.10252]
[1769534212847,0.00258838,87908.0,87895.0,0.10252]
[1769534213048,0.011388,87912.0,87895.0,0.10252]
[1769534213248,0.011388,87912.0,87890.0,0.01139]
[1769534213249,0.00258838,87911.0,87890.0,0.11391]
[1769534213454,0.00258838,87911.0,87893.0,0.01139]
[1769534214043,0.011388,87907.0,87885.0,0.011391]
[1769534214243,0.011389,87900.0,87883.0,9.27e-05]
[1769534214450,0.12,87909.0,87881.0,0.10252]
[1769534214451,0.011389,87898.0,87881.0,0.10252]
[1769534214644,0.01139,87896.0,87876.0,0.01148367]
[1769534214958,0.12,87901.0,87877.0,0.011392]
[1769534214959,0.00258838,87895.0,87877.0,0.011392]
[1769534215146,0.01397838,87895.0,87876.0,9.167e-05]
[1769534215748,0.01397838,87895.0,87876.0,0.01148367]
[1769534216753,0.1199984,87893.0,87855.0,9.645e-05]
[1769534216960,0.011391,87884.0,87862.0,0.011394]
[1769534217258,0.00258838,87883.0,87865.0,0.011394]
[1769534217459,0.011392,87881.0,87863.0,0.00172333]
[1769534217643,0.00258838,87880.0,87863.0,0.00172333]
[1769534217848,9.167e-05,87879.0,87863.0,0.00172333]
[1769534218044,0.00268005,87879.0,87859.0,0.10252]
[1769534218653,0.011392,87878.0,87854.0,0.00172333]
[1769534218852,0.011393,87874.0,87854.0,0.00172333]
[1769534219053,0.011393,87874.0,87827.0,0.011399]
[1769534219054,0.011396,87850.0,87820.0,0.011399]
[1769534219355,0.011393,87874.0,87809.0,0.90633758]
[1769534219356,0.11560988,87836.0,87809.0,0.90633758]
[1769534219567,0.52067463,87835.0,87813.0,0.0114]
[1769534219761,0.11556625,87833.0,87813.0,0.0114]
[1769534219957,0.11815463,87833.0,87812.0,0.0473669]
[1769534220159,0.11815463,87833.0,87812.0,0.0359669]
[1769534220456,0.11815463,87833.0,87789.0,1.0181138]
[1769534220457,0.11053902,87822.0,87793.0,0.00497335]
[1769534220653,0.11053902,87817.0,87789.0,1.0181138]
[1769534220859,0.11053902,87815.0,87789.0,1.0181138]
[1769534221064,0.30269834,87816.0,87767.0,9.082e-05]
[1769534221065,0.01398838,87814.0,87767.0,9.082e-05]
[1769534221354,0.011401,87805.0,87786.0,0.00734722]
[1769534221558,0.10520822,87804.0,87786.0,0.00734722]
[1769534221755,0.10252,87803.0,87786.0,0.00734722]
[1769534221953,0.00258838,87802.0,87786.0,0.00734722]
[1769534222155,0.11649008,87802.0,87786.0,0.00734722]
[1769534222349,0.4026,87801.0,87786.0,0.00734722]
[1769534222556,0.30008,87815.0,87786.0,0.12734721]
[1769534222758,0.10252,87814.0,87798.0,0.11727434]
[1769534222946,0.10252,87822.0,87798.0,0.11727434]
[1769534223151,0.11389456,87830.0,87800.0,0.11727434]
[1769534223352,0.10256,87829.0,87803.0,0.11727434]
[1769534223556,0.10256,87830.0,87805.0,0.11727434]
[1769534223751,0.10256,87830.0,87807.0,0.11727434]
[1769534223953,0.10256,87830.0,87809.0,0.11727434]
[1769534224151,1.61053902,87853.0,87811.0,0.11727434]
[1769534224460,0.11053902,87846.0,87812.0,0.11986272]
[1769534224855,0.06110709,87862.0,87820.0,0.11727434]
[1769534225063,0.40268,87861.0,87826.0,0.11727434]
[1769534225256,0.40268,87861.0,87828.0,0.11727434]
[1769534225460,0.40268,87861.0,87830.0,0.11727434]
[1769534225766,0.011394,87859.0,87831.0,0.00258838]
[1769534226763,0.40268,87861.0,87831.0,0.00258838]
[1769534226764,0.11053902,87850.0,87831.0,0.00258838]
[1769534227063,0.12193502,87848.0,87831.0,0.00258838]
[1769534227268,0.10256,87847.0,87831.0,0.00258838]
[1769534227567,0.12193502,87846.0,87815.0,0.11727434]
[1769534227769,0.11053902,87838.0,87815.0,0.00258838]
[1769534228164,0.11053902,87836.0,87801.0,0.10256]
[1769534228365,0.011398,87833.0,87802.0,0.00258838]
[1769534228970,0.11053902,87830.0,87788.0,0.011404]
[1769534229266,0.11053902,87823.0,87791.0,0.00258838]
[1769534229562,0.113959,87822.0,87791.0,0.00258838]
[1769534229771,0.10256,87822.0,87791.0,0.00258838]
[1769534229959,0.12193702,87835.0,87799.0,0.11727434]
[1769534230163,0.011398,87835.0,87801.0,0.11727434]
[1769534230361,0.10256,87835.0,87812.0,0.0114]
[1769534230560,0.10256,87835.0,87813.0,0.00258838]
[1769534230869,0.10256,87835.0,87814.0,0.0114]
[1769534231068,0.10256,87835.0,87815.0,0.00258838]
[1769534231564,0.10256,87835.0,87801.0,0.011402]
[1769534231565,0.11053902,87834.0,87816.0,0.00258838]
[1769534231770,0.11053902,87834.0,87801.0,0.011402]
[1769534231771,0.011398,87833.0,87805.0,0.10256]
[1769534231971,0.11386409,87833.0,87805.0,0.00258838]
[1769534232162,0.11053902,87832.0,87805.0,0.00258838]
[1769534232369,0.011399,87826.0,87805.0,0.00258838]
[1769534232559,0.011398,87831.0,87805.0,0.11986272]
[1769534233259,0.011399,87821.0,87805.0,0.00258838]
[1769534233473,0.011399,87821.0,87795.0,0.10256]
[1769534233667,0.011399,87821.0,87795.0,0.10514838]
[1769534234464,0.011399,87821.0,87795.0,0.00258838]
[1769534234767,0.011399,87821.0,87796.0,0.1026]
[1769534234972,0.011399,87821.0,87797.0,0.00258838]
[1769534235464,0.10256,87822.0,87797.0,0.00258838]
[1769534235671,0.10256,87822.0,87797.0,0.11986272]
[1769534235975,0.10256,87822.0,87799.0,0.11727434]
[1769534236175,0.10256,87822.0,87787.0,0.3002]
[1769534236176,0.10256,87822.0,87800.0,0.00258838]
[1769534236473,0.011399,87821.0,87800.0,0.00258838]
[1769534237066,0.10256,87822.0,87800.0,0.00258838]
[1769534237266,0.10256,87822.0,87802.0,0.011402]
[1769534237468,0.10256,87822.0,87804.0,0.011402]
[1769534237664,0.10256,87822.0,87805.0,0.00258838]
[1769534238272,0.10256,87822.0,87806.0,0.011401]
[1769534238474,0.10256,87822.0,87807.0,0.00258838]
[1769534238872,0.11053902,87820.0,87807.0,0.00258838]
[1769534239472,0.10256,87822.0,87807.0,0.00258838]
[1769534239872,0.11053902,87839.0,87820.0,0.011399]
[1769534240070,0.1026,87838.0,87828.0,0.011398]
[1769534240266,0.11053902,87846.0,87823.0,0.011399]
[1769534240575,0.12193602,87840.0,87824.0,0.00258838]
[1769534240871,0.011398,87831.0,87805.0,0.011401]
[1769534241086,0.11053902,87831.0,87809.0,0.011401]
[1769534241279,0.12193702,87831.0,87810.0,0.00258838]
[1769534242182,0.11053902,87831.0,87811.0,0.011401]
[1769534242376,0.11053902,87831.0,87812.0,0.00258838]
[1769534242579,0.11053902,87831.0,87813.0,0.0114]
[1769534242886,0.11053902,87831.0,87815.0,0.0114]
[1769534243185,0.11053902,87831.0,87816.0,0.00258838]
[1769534243583,0.1026,87833.0,87772.0,0.011406]
[1769534243584,0.11412685,87825.0,87772.0,0.011406]
[1769534243783,2.2e-07,87809.0,87787.0,0.40370282]
[1769534244087,6.7e-07,87808.0,87805.0,0.011401]
[1769534244390,1.9e-07,87820.0,87801.0,0.09103659]
[1769534244687,8.2e-07,87828.0,87825.0,0.011399]
[1769534244875,0.56385637,87851.0,87827.0,0.00258838]
[1769534245074,0.56471919,87851.0,87828.0,0.1026]
[1769534245280,0.10684575,87848.0,87828.0,0.011398]
[1769534245486,0.09631257,87847.0,87830.0,0.011398]
[1769534245682,0.011397,87841.0,87821.0,0.011399]
[1769534245894,0.00086282,87840.0,87822.0,0.10518838]
[1769534246078,0.00086282,87840.0,87823.0,0.1026]
[1769534246274,0.011398,87832.0,87815.0,0.1026]
[1769534246484,0.00086282,87831.0,87816.0,0.00258838]
[1769534246678,0.1026,87836.0,87816.0,0.00258838]
[1769534246886,0.1026,87836.0,87825.0,0.011399]
[1769534247085,0.10346282,87836.0,87818.0,0.0114]
[1769534247280,0.09544975,87835.0,87818.0,0.00258838]
[1769534247480,0.09544975,87833.0,87818.0,0.00258838]
[1769534247679,0.00086282,87832.0,87818.0,0.00258838]
[1769534247885,0.011398,87831.0,87818.0,0.00258838]
[1769534248083,0.10684875,87825.0,87799.0,0.1026]
[1769534248289,0.09803813,87824.0,87807.0,0.011401]
[1769534248688,0.09544975,87846.0,87803.0,0.09974101]
[1769534248895,0.06422394,87855.0,87802.0,0.09974101]
[1769534248896,0.09544975,87830.0,87802.0,0.09974101]
[1769534249095,0.00258838,87830.0,87805.0,0.09974101]
[1769534249396,0.00258838,87830.0,87814.0,0.0114]
[1769534250291,0.00258838,87830.0,87807.0,0.011401]
[1769534250495,0.011399,87826.0,87808.0,0.1026]
[1769534250684,0.00258838,87825.0,87806.0,0.011401]
[1769534250888,0.00258838,87825.0,87811.0,0.011401]
[1769534251288,0.09544975,87830.0,87808.0,0.1026]
[1769534251485,0.01398638,87830.0,87812.0,0.0114]
[1769534251796,0.00258838,87830.0,87812.0,0.0114]
[1769534251995,0.011398,87829.0,87810.0,0.1026]
[1769534252198,0.00258838,87828.0,87810.0,0.1026]
[1769534252495,0.011399,87827.0,87810.0,0.1026]
[1769534252684,0.00258838,87826.0,87810.0,0.1026]
[1769534253088,0.011399,87822.0,87801.0,0.011402]
[1769534253291,0.00258838,87821.0,87802.0,0.114002]
[1769534253491,0.00258838,87821.0,87806.0,0.011401]
[1769534254298,0.00258838,87821.0,87803.0,0.011402]
[1769534254794,0.00258838,87821.0,87799.0,0.1026]
[1769534255192,0.09544975,87842.0,87814.0,0.0114]
[1769534255396,0.09544975,87840.0,87811.0,0.011401]
[1769534255599,0.09544975,87829.0,87793.0,0.08191728]
[1769534255802,0.011399,87823.0,87794.0,0.40284]
[1769534256099,0.00258838,87822.0,87805.0,0.011401]
[1769534256400,0.00258838,87822.0,87806.0,0.1026]
[1769534256596,0.00258838,87822.0,87797.0,0.06274323]
[1769534256799,0.09544975,87837.0,87802.0,0.06274323]
[1769534257002,0.09544975,87835.0,87810.0,0.011401]
[1769534257302,0.011398,87831.0,87802.0,0.06274323]
[1769534257503,0.17368349,87830.0,87802.0,0.06274323]
[1769534257689,0.17109511,87829.0,87802.0,0.06274323]
[1769534257890,0.00258838,87828.0,87802.0,0.06274323]
[1769534258100,0.17109511,87827.0,87811.0,0.011401]
[1769534258298,0.00258838,87826.0,87811.0,0.011401]
[1769534258605,0.011399,87822.0,87805.0,0.011401]
[1769534258805,0.00258838,87822.0,87802.0,0.06274323]
[1769534259003,0.00258838,87822.0,87811.0,0.011401]
[1769534259204,0.00258838,87822.0,87808.0,0.011401]
[1769534259395,0.00258838,87822.0,87805.0,0.114001]
[1769534259703,0.00258838,87822.0,87805.0,0.1026]
[1769534260504,0.00258838,87822.0,87810.0,0.011401]
[1769534260692,0.011399,87827.0,87810.0,0.011401]
[1769534260899,0.011398,87833.0,87816.0,0.0114]
[1769534261198,0.011399,87821.0,87799.0,0.30028]
[1769534261394,0.00258838,87820.0,87807.0,0.1026]
[1769534261802,0.07722424,87825.0,87807.0,0.1026]
[1769534262007,0.00258838,87820.0,87807.0,0.1026]
[1769534262198,0.07722424,87825.0,87807.0,0.1026]
[1769534262401,0.011397,87841.0,87807.0,0.1026]
[1769534262402,0.011397,87836.0,87807.0,0.114001]
[1769534262600,0.011397,87836.0,87816.0,0.0114]
[1769534262601,0.011398,87832.0,87816.0,0.0114]
[1769534262806,0.00258838,87831.0,87807.0,0.1026]
[1769534263012,0.00086282,87830.0,87823.0,0.011399]
[1769534263207,0.07738644,87835.0,87819.0,0.0114]
[1769534263513,0.07738644,87835.0,87808.0,0.011401]
[1769534263514,0.07738644,87835.0,87820.0,0.00258838]
[1769534264209,0.00569265,87833.0,87820.0,0.00258838]
[1769534264514,0.17108804,87832.0,87820.0,0.00258838]
[1769534264809,0.17108804,87831.0,87820.0,0.00258838]
[1769534264995,0.00796971,87833.0,87820.0,0.00258838]
[1769534265507,0.07994353,87832.0,87821.0,0.00086282]
[1769534265814,0.09134153,87832.0,87813.0,0.1026]
[1769534266011,0.09134153,87832.0,87792.0,0.11386149]
[1769534266012,0.08875415,87825.0,87806.0,0.011401]
[1769534266210,0.0114,87816.0,87804.0,0.1026]
[1769534266410,0.00258838,87815.0,87801.0,0.1026]
[1769534266598,0.011401,87812.0,87797.0,0.1026]
[1769534266802,0.00258838,87811.0,87797.0,0.1026]
[1769534267218,0.011399,87824.0,87806.0,0.011401]
[1769534267404,0.07980409,87820.0,87797.0,0.1026]
[1769534267606,0.07980409,87820.0,87801.0,0.011402]
[1769534267906,0.00258838,87820.0,87809.0,0.011401]
[1769534268107,0.00258838,87820.0,87806.0,0.011401]
[1769534268315,0.07721571,87818.0,87805.0,0.011401]
[1769534268508,0.00258838,87817.0,87805.0,0.011401]
[1769534268714,0.00258838,87817.0,87802.0,0.011402]
[1769534268912,0.00258838,87817.0,87805.0,0.011401]
[1769534269111,0.00258838,87817.0,87800.0,0.1026]
[1769534269112,0.00258838,87817.0,87802.0,0.011402]
[1769534269313,0.00258838,87817.0,87800.0,0.1026]
[1769534269512,0.07721571,87827.0,87810.0,0.011401]
[1769534269714,0.113998,87829.0,87800.0,0.1026]
[1769534269715,0.17109856,87826.0,87819.0,0.0114]
[1769534269913,5.6e-07,87825.0,87821.0,0.011399]
[1769534270116,0.00796971,87833.0,87823.0,0.011399]
[1769534270316,0.00796971,87833.0,87825.0,0.011399]
[1769534270613,7.1e-07,87833.0,87828.0,0.011398]
[1769534270912,7.1e-07,87833.0,87815.0,0.0114]
[1769534270913,7.1e-07,87833.0,87825.0,0.011399]
[1769534271308,7.1e-07,87833.0,87827.0,0.011399]
[1769534271514,7.1e-07,87833.0,87824.0,0.113999]
[1769534271716,0.00258909,87833.0,87826.0,0.011399]
[1769534272215,7.1e-07,87833.0,87823.0,0.1026]
[1769534272404,0.00258909,87833.0,87823.0,0.1026]
[1769534272609,0.0764909,87829.0,87791.0,0.011403]
[1769534272914,0.011399,87822.0,87805.0,0.011401]
[1769534273120,0.07907928,87821.0,87802.0,0.1026]
[1769534273309,0.23081842,87817.0,87800.0,0.011402]
[1769534273512,0.00258838,87816.0,87800.0,0.011402]
[1769534273709,0.0114,87815.0,87798.0,0.011402]
[1769534273906,0.00258838,87814.0,87796.0,0.011403]
[1769534274114,0.21941842,87817.0,87810.0,0.011401]
[1769534274310,0.00258838,87817.0,87802.0,0.011402]
[1769534274516,0.00258838,87817.0,87804.0,0.011402]
[1769534274720,0.00258838,87817.0,87809.0,0.011401]
[1769534274915,0.32201842,87822.0,87809.0,0.011401]
[1769534275113,0.3246068,87822.0,87809.0,0.011401]
[1769534275314,0.1026,87822.0,87801.0,0.011402]
[1769534275516,0.011398,87830.0,87812.0,0.0114]
[1769534275817,0.011398,87830.0,87802.0,0.011402]
[1769534275818,0.00258838,87829.0,87810.0,0.1026]
[1769534276017,0.00258838,87829.0,87816.0,0.0114]
[1769534276313,0.01805809,87829.0,87805.0,0.011401]
[1769534276619,0.01805809,87829.0,87804.0,0.1026]
[1769534276918,0.011399,87822.0,87804.0,0.1026]
[1769534277119,0.00258838,87821.0,87804.0,0.1026]
[1769534277511,0.00258838,87821.0,87811.0,0.011401]
[1769534277712,0.00258838,87821.0,87808.0,0.011401]
[1769534278520,0.011399,87825.0,87808.0,0.011401]
[1769534278723,0.00258838,87824.0,87805.0,0.011401]
[1769534278925,0.00258838,87824.0,87807.0,0.011401]
[1769534279923,0.011399,87823.0,87807.0,0.011401]
[1769534280122,0.00258838,87822.0,87807.0,0.011401]
[1769534281228,0.01398738,87822.0,87805.0,0.011401]
[1769534281433,0.01553613,87814.0,87787.0,0.011404]
[1769534281620,0.01553613,87797.0,87772.0,0.011406]
[1769534281932,0.01553613,87797.0,87766.0,0.01139387]
[1769534281933,0.01553613,87789.0,87766.0,0.01139387]
[1769534282115,0.01550585,87779.0,87766.0,0.01139387]
[1769534282332,0.14775167,87780.0,87746.0,0.01139647]
[1769534282333,0.011408,87759.0,87746.0,0.01139647]
[1769534282534,0.2680677,87758.0,87746.0,0.00139647]
[1769534282736,0.26547932,87757.0,87746.0,0.00139647]
[1769534282930,0.1654677,87756.0,87746.0,0.00139647]
[1769534283131,8.013e-05,87755.0,87746.0,0.00139647]
[1769534283331,9.8e-07,87754.0,87746.0,0.00398485]
[1769534283530,0.011405,87776.0,87750.0,0.011409]
[1769534283742,0.40374282,87775.0,87751.0,0.00258838]
[1769534283942,0.011406,87771.0,87751.0,0.00258838]
[1769534284136,0.00086282,87771.0,87752.0,0.011408]
[1769534284340,0.1026,87770.0,87753.0,0.00258838]
[1769534284641,0.00086282,87769.0,87753.0,0.00258838]
[1769534285229,0.00926062,87777.0,87753.0,0.00258838]
[1769534285230,0.22302953,87792.0,87760.0,0.00979112]
[1769534285430,0.40292,87791.0,87770.0,0.011406]
[1769534285629,0.40292,87791.0,87760.0,0.00979112]
[1769534285630,0.00086282,87790.0,87771.0,0.00258838]
[1769534286643,0.10264,87790.0,87784.0,0.011404]
[1769534286828,0.10264,87790.0,87772.0,0.00979112]
[1769534286829,0.10522838,87790.0,87773.0,0.00979112]
[1769534287431,0.00926062,87787.0,87761.0,0.011407]
[1769534287642,0.10522838,87790.0,87752.0,0.011408]
[1769534287643,0.00926062,87775.0,87752.0,0.011408]
[1769534287842,0.11391921,87789.0,87750.0,0.10264]
[1769534287843,0.00926062,87772.0,87750.0,0.10264]
[1769534288141,0.00258838,87771.0,87751.0,0.011408]
[1769534288336,0.30036,87770.0,87751.0,0.011408]
[1769534288647,0.011407,87761.0,87736.0,0.01141]
[1769534288835,0.00926062,87765.0,87736.0,0.01141]
[1769534288836,0.011407,87759.0,87736.0,0.01141]
[1769534289036,0.10522838,87758.0,87739.0,0.01141]
[1769534289540,0.10522838,87758.0,87738.0,0.01141]
[1769534290043,0.11663638,87758.0,87734.0,0.011411]
[1769534290443,0.011408,87754.0,87729.0,0.011411]
[1769534290646,0.011408,87752.0,87728.0,0.11243112]
[1769534290842,0.00258838,87751.0,87729.0,0.011411]
[1769534291044,0.00258838,87751.0,87728.0,0.02120212]
[1769534291250,0.44811167,87770.0,87727.0,0.10264]
[1769534291251,0.00926062,87787.0,87746.0,0.00979112]
[1769534291441,0.00086282,87769.0,87747.0,0.01399738]